fUST/lending_fUST_20260422
["ID","MTS","AMOUNT","RATE_DAILY","PERIOD"]
[420963526,1776812472008,474.82,0.00025075,120]
[420963527,1776812474871,500.0,0.00025075,120]
[420963528,1776812475108,500.0,0.00025075,120]
[420963529,1776812476930,500.0,0.00025075,120]
[420963530,1776812477153,500.0,0.00025075,120]
[420963531,1776812477714,500.0,0.00025075,120]
[420963532,1776812477779,500.0,0.00025075,120]
[420963533,1776812477871,500.0,0.00025075,120]
[420963534,1776812477938,500.0,0.00025075,120]
[420963535,1776812478001,500.0,0.00025075,120]
[420963536,1776812478173,500.0,0.00025075,120]
[420963537,1776812478238,233.52,0.00025075,120]
[420963538,1776812478407,500.0,0.00025075,120]
[420963539,1776812478584,570.78,0.00025075,120]
[420963540,1776812480273,500.0,0.00025075,120]
[420963541,1776812480513,500.0,0.00025075,120]
[420963542,1776812480750,500.0,0.00025075,120]
[420963543,1776812480979,500.0,0.00025075,120]
[420963544,1776812481259,500.0,0.00025075,120]
[420963545,1776812481411,502.28771595,0.00025075,120]
[420963546,1776812481474,500.0,0.00025075,120]
[420963547,1776812481712,570.14,0.00025075,120]
[420963548,1776812483079,500.0,0.00025075,120]
[420963549,1776812483446,500.0,0.00025075,120]
[420963550,1776812483556,500.0,0.00025075,120]
[420963551,1776812483781,500.0,0.00025075,120]
[420963552,1776812484015,500.0,0.00025075,120]
[420963553,1776812484238,500.0,0.00025075,120]
[420963554,1776812484498,500.0,0.00025075,120]
[420963555,1776812484901,500.0,0.00025075,120]
[420963556,1776812487882,500.0,0.00025075,120]
[420963557,1776812488099,500.0,0.00025075,120]
[420963558,1776812488321,500.0,0.00025075,120]
[420963559,1776812488548,292.59,0.00025075,120]
[420963560,1776812489216,500.0,0.00025075,120]
[420963561,1776812489277,500.0,0.00025075,120]
[420963562,1776812489492,500.0,0.00025075,120]
[420963563,1776812489717,500.0,0.00025075,120]
[420963564,1776812489934,500.0,0.00025075,120]
[420963565,1776812490161,500.0,0.00025075,120]
[420963566,1776812490744,500.0,0.00025075,120]
[420963567,1776812490818,500.0,0.00025075,120]
[420963568,1776812490966,500.0,0.00025075,120]
[420963569,1776812491186,500.0,0.00025075,120]
[420963570,1776812491432,500.0,0.00025075,120]
[420963571,1776812491668,500.0,0.00025075,120]
[420963572,1776812491887,500.0,0.00025075,120]
[420963573,1776812492113,500.0,0.00025075,120]
[420963574,1776812492332,500.0,0.00025075,120]
[420963575,1776812492589,468.16,0.00025075,120]
[420963576,1776812493866,500.0,0.00025075,120]
[420963577,1776812494093,500.0,0.00025075,120]
[420963578,1776812494777,529.71841845,0.00025075,120]
[420963579,1776812497388,552.89533262,0.00025075,120]
[420963580,1776812498751,500.0,0.00025075,120]
[420963581,1776812499779,356.86289468,0.00025075,120]
[420963582,1776812500525,500.0,0.00025075,120]
[420963583,1776812500965,500.0,0.00025075,120]
[420963584,1776812501206,500.0,0.00025075,120]
[420963585,1776812502795,500.0,0.00025075,120]
[420963586,1776812503495,500.0,0.00025075,120]
[420963587,1776812503730,500.0,0.00025075,120]
[420963588,1776812503955,500.0,0.00025075,120]
[420963589,1776812504173,500.0,0.00025075,120]
[420963590,1776812504572,500.0,0.00025075,120]
[420963591,1776812504718,500.0,0.00025075,120]
[420963592,1776812504811,500.0,0.00025075,120]
[420963593,1776812504938,500.0,0.00025075,120]
[420963594,1776812505100,500.0,0.00025075,120]
[420963595,1776812505331,500.0,0.00025075,120]
[420963596,1776812505557,500.0,0.00025075,120]
[420963597,1776812505791,447.64,0.00025075,120]
[420963598,1776812506656,500.0,0.00025075,120]
[420963599,1776812506893,500.0,0.00025075,120]
[420963600,1776812507153,500.0,0.00025075,120]
[420963601,1776812507420,500.0,0.00025075,120]
[420963602,1776812507655,405.44,0.00025075,120]
[420963603,1776812509670,500.0,0.00025075,120]
[420963604,1776812512833,500.0,0.00025075,120]
[420963605,1776812513075,500.0,0.00025075,120]
[420963606,1776812513140,500.0,0.00025075,120]
[420963607,1776812514454,500.0,0.00025075,120]
[420963608,1776812514786,500.0,0.00025075,120]
[420963609,1776812514851,500.0,0.00025075,120]
[420963610,1776812515730,500.0,0.00025075,120]
[420963611,1776812518373,500.0,0.00025075,120]
[420963612,1776812518613,500.0,0.00025075,120]
[420963613,1776812520398,594.67286055,0.00025075,120]
[420963614,1776812520953,500.0,0.00025075,120]
[420963615,1776812521185,500.0,0.00025075,120]
[420963616,1776812521426,500.0,0.00025075,120]
[420963617,1776812521675,620.07,0.00025075,120]
[420963618,1776812523391,500.0,0.00025075,120]
[420963619,1776812523654,500.0,0.00025075,120]
[420963620,1776812523881,500.0,0.00025075,120]
[420963621,1776812526593,500.0,0.000251,120]
[420963622,1776812527625,500.0,0.000251,120]
[420963623,1776812527697,536.6,0.000251,120]
[420963624,1776812527851,500.0,0.000251,120]
[420963625,1776812528312,217.36495014,0.000251,120]
[420963626,1776812531839,500.0,0.000251,120]
[420963627,1776812532101,500.0,0.000251,120]
[420963628,1776812534328,500.0,0.000251,120]
[420963629,1776812534555,500.0,0.000251,120]
[420963630,1776812535168,500.0,0.000251,120]
[420963631,1776812536427,500.0,0.000251,120]
[420963632,1776812539257,500.0,0.000251,120]
[420963633,1776812539480,500.0,0.000251,120]
[420963634,1776812540916,500.0,0.000251,120]
[420963635,1776812541186,500.0,0.000251,120]
[420963636,1776812541417,166.74,0.000251,120]
[420963637,1776812545001,500.0,0.000251,120]
[420963638,1776812545598,511.94,0.000251,120]
[420963639,1776812545671,500.0,0.000251,120]
[420963640,1776812549296,500.0,0.000251,120]
[420963641,1776812549540,500.0,0.000251,120]
[420963642,1776812549835,500.0,0.000251,120]
[420963643,1776812550063,500.0,0.000251,120]
[420963644,1776812550127,500.0,0.000251,120]
[420963645,1776812550293,500.0,0.000251,120]
[420963646,1776812550359,500.0,0.000251,120]
[420963647,1776812550424,500.0,0.000251,120]
[420963648,1776812550560,367.54,0.000251,120]
[420963649,1776812550625,500.0,0.000251,120]
[420963650,1776812550799,500.0,0.000251,120]
[420963651,1776812550861,500.0,0.000251,120]
[420963652,1776812550928,500.0,0.000251,120]
[420963653,1776812550989,261.44,0.000251,120]
[420963654,1776812551050,237.43,0.000251,120]
[420963655,1776812551110,500.0,0.000251,120]
[420963656,1776812551498,500.0,0.000251,120]
[420963657,1776812551773,500.0,0.000251,120]
[420963658,1776812551942,500.0,0.000251,120]
[420963659,1776812552160,500.0,0.000251,120]
[420963660,1776812552392,500.0,0.000251,120]
[420963661,1776812552639,500.0,0.000251,120]
[420963662,1776812552859,500.0,0.000251,120]
[420963663,1776812553082,500.0,0.000251,120]
[420963664,1776812553365,500.0,0.000251,120]
[420963665,1776812553604,500.0,0.000251,120]
[420963666,1776812553861,500.0,0.000251,120]
[420963667,1776812554121,500.0,0.000251,120]
[420963668,1776812554330,500.0,0.000251,120]
[420963669,1776812554688,500.0,0.000251,120]
[420963670,1776812554921,416.78,0.000251,120]
[420963671,1776812557327,500.0,0.000251,120]
[420963672,1776812557560,500.0,0.000251,120]
[420963673,1776812559624,257.502148,0.000251,120]
[420963674,1776812559807,500.0,0.000251,120]
[420963675,1776812560534,500.0,0.000251,120]
[420963676,1776812560785,351.25,0.000251,120]
[420963677,1776812561072,500.0,0.000251,120]
[420963678,1776812561195,500.0,0.000251,120]
[420963679,1776812561505,500.0,0.000251,120]
[420963680,1776812564765,492.34940714,0.000251,120]
[420963681,1776812566307,47.33984653,0.000251,120]
[420963682,1776812659969,3825.36322571,0.00024558,120]
[420963684,1776812829644,500.0,0.00024657,120]
[420963685,1776812844580,500.0,0.00024657,120]
[420963686,1776812855252,1000.0,0.00024657,120]
[420963695,1776813032588,-229.83432848,0.00011705,2]
[420963696,1776813032598,-285.84299282,0.00011705,2]
[420963697,1776813032641,-299.15700718,0.00011705,2]
[420963698,1776813032650,-808.52906721,0.00011709,10]
[420963957,1776813039203,-655.5965036,0.00011709,10]
[420963958,1776813039213,-796.90981245,0.00011827,10]
[420963959,1776813039222,-2687.16382073,0.00011946,10]
[420963960,1776813039234,-1064.18064779,0.00011946,10]
[420963961,1776813039243,-300.0,0.0001219,2]
[420963962,1776813039252,-1200.0,0.0001219,2]
[420963963,1776813039261,-5620.8831722,0.00012191,2]
[420963964,1776813039271,-693.16579688,0.00012339,2]
[420963965,1776813039280,-294.42093139,0.000125,2]
[420963966,1776813039290,-168.47909484,0.00012633,2]
[420963967,1776813039299,-523.06141639,0.00012988,2]
[420963968,1776813039308,-554.27443513,0.00012988,2]
[420963969,1776813039317,-2214.88064276,0.00012988,2]
[420963970,1776813039327,-17022.47353277,0.00013,2]
[420963971,1776813039337,-500.0,0.00013,2]
[420963972,1776813039347,-537.6845,0.00013142,2]
[420963973,1776813039356,-2150.738,0.00013142,2]
[420963974,1776813039366,-557.5788265,0.00013197,2]
[420963975,1776813039375,-578.20924308,0.00013252,2]
[420963976,1776813039385,-599.60298507,0.00013307,2]
[420963977,1776813039395,-621.78829552,0.00013362,2]
[420963978,1776813039404,-643378.77329652,0.00013373,2]
[420963979,1776813039414,-500.0,0.00013373,2]
[420963980,1776813039424,-310.58964247,0.00013373,2]
[420963981,1776813039433,-500.0,0.00013373,2]
[420963982,1776813039442,-308.0,0.00013379,2]
[420963983,1776813039451,-160.0,0.0001339,2]
[420963984,1776813039460,-313.0,0.00013409,2]
[420963985,1776813039470,-644.79446246,0.00013417,2]
[420963986,1776813039479,-668.65185757,0.00013472,2]
[420963987,1776813039489,-268.89082973,0.00013473,2]
[420963988,1776813039499,-500.0,0.00013473,2]
[420963989,1776813039509,-2787.3,0.00013473,2]
[420963990,1776813039518,-2787.3,0.00013473,2]
[420963991,1776813039528,-3879.06,0.00013473,2]
[420963992,1776813039537,-160.0,0.00013495,2]
[420963993,1776813039546,-693.3919763,0.00013527,2]
[420963994,1776813039556,-55475.33026313,0.00013556,2]
[420963995,1776813039565,-719.04747942,0.00013582,2]
[420963996,1776813039574,-235.48287634,0.000136,2]
[420963997,1776813039584,-745.65223616,0.00013637,2]
[420963998,1776813039593,-445.202766,0.00013655,2]
[420963999,1776813039602,-2639.1117473,0.00013656,2]
[420964000,1776813039612,-3212.2188562,0.00013656,2]
[420964001,1776813039621,-879.7039158,0.00013656,2]
[420964002,1776813039631,-469.43532626,0.00013672,2]
[420964003,1776813039641,-4577.4855237,0.00013673,2]
[420964004,1776813039650,-2230.315306,0.0001369,2]
[420964005,1776813039659,-773.2413689,0.00013692,2]
[420964006,1776813039668,-1000.0,0.00013698,2]
[420964007,1776813039678,-1000.0,0.00013698,2]
[420964008,1776813039687,-1000.0,0.00013698,2]
[420964009,1776813039696,-1000.0,0.00013698,2]
[420964010,1776813039707,-1000.0,0.00013698,2]
[420964011,1776813039717,-500.0,0.00013698,2]
[420964012,1776813039726,-500.0,0.00013698,2]
[420964013,1776813039735,-500.0,0.00013698,2]
[420964014,1776813039744,-500.0,0.00013698,2]
[420964015,1776813039754,-500.0,0.00013698,2]
[420964016,1776813039763,-500.0,0.00013698,2]
[420964017,1776813039772,-500.0,0.00013698,2]
[420964018,1776813039780,-500.0,0.00013698,2]
[420964019,1776813039790,-500.0,0.00013698,2]
[420964020,1776813039799,-500.0,0.00013698,2]
[420964021,1776813039808,-500.0,0.00013698,2]
[420964022,1776813039817,-500.0,0.00013698,2]
[420964023,1776813039826,-500.0,0.00013698,2]
[420964024,1776813039836,-500.0,0.00013698,2]
[420964025,1776813039845,-500.0,0.00013698,2]
[420964026,1776813039854,-500.0,0.00013698,2]
[420964027,1776813039863,-500.0,0.00013698,2]
[420964028,1776813039872,-500.0,0.00013698,2]
[420964029,1776813039882,-500.0,0.00013698,2]
[420964030,1776813039891,-228.443128,0.00013698,2]
[420964031,1776813039900,-156.0,0.00013699,2]
[420964032,1776813039910,-1000.0,0.00013699,2]
[420964033,1776813039919,-1000.0,0.00013699,2]
[420964034,1776813039928,-152.0,0.00013718,7]
[420964035,1776813039937,-152.0,0.00013718,7]
[420964036,1776813039947,-801.85129955,0.00013747,2]
[420964037,1776813039956,-152.0,0.00013763,7]
[420964038,1776813039966,-152.0,0.00013763,7]
[420964039,1776813039975,-152.0,0.00013763,7]
[420964040,1776813039984,-400.0,0.00013764,7]
[420964041,1776813039993,-400.0,0.00013764,7]
[420964042,1776813040003,-400.0,0.00013764,7]
[420964043,1776813040012,-400.0,0.00013764,7]
[420964044,1776813040021,-400.0,0.00013764,7]
[420964045,1776813040030,-400.0,0.00013764,7]
[420964046,1776813040040,-400.0,0.00013764,7]
[420964047,1776813040049,-400.0,0.00013764,7]
[420964048,1776813040059,-400.0,0.00013764,7]
[420964049,1776813040068,-400.0,0.00013764,7]
[420964050,1776813040077,-400.0,0.00013764,7]
[420964051,1776813040087,-400.0,0.00013764,7]
[420964052,1776813040097,-400.0,0.00013764,7]
[420964053,1776813040106,-400.0,0.00013764,7]
[420964054,1776813040114,-400.0,0.00013764,7]
[420964055,1776813040123,-400.0,0.00013764,7]
[420964056,1776813040132,-400.0,0.00013764,7]
[420964057,1776813040141,-400.0,0.00013764,7]
[420964058,1776813040150,-400.0,0.00013764,7]
[420964059,1776813040159,-400.0,0.00013764,7]
[420964060,1776813040168,-400.0,0.00013764,7]
[420964061,1776813040177,-400.0,0.00013764,7]
[420964062,1776813040187,-354.38,0.00013764,7]
[420964063,1776813040195,-152.0,0.00013777,7]
[420964064,1776813040204,-152.0,0.00013777,7]
[420964065,1776813040213,-152.0,0.00013777,7]
[420964066,1776813040222,-152.0,0.00013777,7]
[420964067,1776813040231,-152.0,0.00013777,7]
[420964068,1776813040240,-501.43065135,0.00013845,2]
[420964069,1776813040249,-500.0,0.00013845,2]
[420964070,1776813040259,-500.0,0.00013845,2]
[420964071,1776813040268,-500.0,0.00013871,2]
[420964072,1776813040278,-265.89094094,0.00013908,2]
[420964073,1776813040287,-500.0,0.00013915,2]
[420964074,1776813040296,-500.0,0.00013915,2]
[420964075,1776813040306,-1000.0,0.00013921,2]
[420964076,1776813040315,-1000.0,0.00013921,2]
[420964077,1776813040325,-180.167548,0.0001394,2]
[420964078,1776813040334,-2289.0,0.00014,5]
[420964079,1776813040344,-500.0,0.00014,2]
[420964080,1776813040353,-413.3,0.000142,2]
[420964081,1776813040363,-194.0,0.000142,2]
[420964082,1776813040373,-2312.83697232,0.00014238,2]
[420964083,1776813040383,-500.0,0.0001434,2]
[420964084,1776813040392,-1000.0,0.00014393,2]
[420964085,1776813040402,-154.26315445,0.00014419,2]
[420964086,1776813040411,-1000.0,0.00014463,2]
[420964087,1776813040420,-1000.0,0.00014463,2]
[420964088,1776813040430,-1500.0,0.00014468,2]
[420964089,1776813040439,-1500.0,0.00014468,2]
[420964090,1776813040448,-198.80533191,0.00014633,2]
[420964091,1776813040457,-637.0,0.00014702,2]
[420964092,1776813040467,-2398.4119403,0.00014786,2]
[420964093,1776813040476,-150.0,0.00014905,2]
[420964094,1776813040485,-150.494,0.00014905,2]
[420964095,1776813040494,-1406.0,0.00014905,2]
[420964096,1776813040503,-645.0,0.00014905,2]
[420964097,1776813040512,-2208.0,0.00014905,2]
[420964098,1776813040522,-445.036,0.00014905,2]
[420964099,1776813040531,-184.0,0.00014905,2]
[420964100,1776813040540,-1500.0,0.00014941,2]
[420964101,1776813040550,-155.0,0.00014959,3]
[420964102,1776813040559,-300.0,0.00014965,2]
[420964103,1776813040568,-300.0,0.00014965,2]
[420964104,1776813040578,-300.0,0.00014965,2]
[420964105,1776813040588,-300.0,0.00014965,2]
[420964106,1776813040753,-300.0,0.00014965,2]
[420964107,1776813040763,-300.0,0.00014965,2]
[420964108,1776813040772,-300.0,0.00014965,2]
[420964109,1776813040781,-300.0,0.00014965,2]
[420964110,1776813040790,-300.0,0.00014965,2]
[420964111,1776813040800,-300.0,0.00014965,2]
[420964112,1776813040810,-300.0,0.00014965,2]
[420964113,1776813040819,-300.0,0.00014965,2]
[420964114,1776813040828,-300.0,0.00014965,2]
[420964115,1776813040838,-300.0,0.00014965,2]
[420964116,1776813040847,-300.0,0.00014965,2]
[420964117,1776813040857,-600.0,0.00014965,2]
[420964118,1776813040867,-269.8,0.00015,2]
[420964119,1776813040876,-339.66395829,0.00015011,2]
[420964120,1776813040885,-1500.0,0.00015011,2]
[420964121,1776813040895,-2000.0,0.00015016,2]
[420964122,1776813040904,-2000.0,0.00015016,2]
[420964123,1776813040914,-182.57806,0.00015068,2]
[420964124,1776813040923,-500.0,0.00015265,2]
[420964125,1776813040932,-500.0,0.00015265,2]
[420964126,1776813040941,-500.0,0.00015265,2]
[420964127,1776813040950,-1377.24379049,0.00015334,2]
[420964128,1776813040959,-500.0,0.0001538,2]
[420964129,1776813040968,-180.167548,0.00015407,2]
[420964130,1776813040978,-2000.0,0.00015489,2]
[420964131,1776813040987,-249.0,0.00015507,3]
[420964132,1776813040996,-2000.0,0.00015559,2]
[420964133,1776813041005,-2500.0,0.00015564,2]
[420964134,1776813041014,-500.0,0.00015564,2]
[420964135,1776813041023,-169.282676,0.0001568,2]
[420964136,1776813041032,-164.373369,0.0001568,7]
[420964138,1776813041041,-160.0,0.0001568,2]
[420964139,1776813041050,-1135.205523,0.0001568,2]
[420964141,1776813041059,-2110.411046,0.0001568,2]
[420964143,1776813041068,-637.0,0.00015702,2]
[420964144,1776813041077,-159.9269598,0.00015781,2]
[420964145,1776813041086,-1000.0,0.00015813,2]
[420964147,1776813041095,-500.0,0.00015813,2]
[420964149,1776813041105,-500.0,0.00015813,2]
[420964151,1776813041114,-696.653,0.00015988,2]
[420964152,1776813041123,-31169.3894375,0.00016,10]
[420964153,1776813041132,-500.0,0.00016,2]
[420964154,1776813041141,-150.0,0.00016,2]
[420964155,1776813041151,-1000.0,0.00016037,2]
[420964156,1776813041160,-2500.0,0.00016107,2]
[420964157,1776813041169,-3000.0,0.00016112,2]
[420964158,1776813041178,-1505.434374,0.0001615,2]
[420964159,1776813041187,-1000.0,0.00016361,2]
[420964160,1776813041196,-1140.0,0.00016438,2]
[420964161,1776813041205,-720.0,0.00016462,2]
[420964162,1776813041214,-1548.007531,0.00016464,2]
[420964163,1776813041224,-500.0,0.00016494,2]
[420964164,1776813041233,-151.0,0.000165,2]
[420964165,1776813041241,-500.0,0.0001656,2]
[420964166,1776813041251,-151.0,0.000166,2]
[420964167,1776813041260,-251.0,0.00016603,3]
[420964168,1776813041270,-229.13156899,0.00016633,2]
[420964169,1776813041280,-3000.0,0.00016655,2]
[420964170,1776813041289,-2148.03805051,0.0001666,2]
[420964171,1776813041298,-3500.0,0.0001666,2]
[420964172,1776813041307,-151.0,0.000167,2]
[420964173,1776813041317,-151.0,0.000167,2]
[420964174,1776813041326,-637.0,0.00016702,2]
[420964175,1776813041335,-1021.3750779,0.00016829,2]
[420964176,1776813041344,-323.0,0.00016832,2]
[420964177,1776813041353,-180.167548,0.00016874,2]
[420964178,1776813041363,-400.0,0.000169,3]
[420964179,1776813041372,-600.0,0.000169,2]
[420964180,1776813041381,-151.0,0.000169,2]
[420964181,1776813041390,-32062.12730733,0.000169,2]
[420964182,1776813041402,-218.752462,0.00016943,2]
[420964183,1776813041411,-151.0,0.00016943,2]
[420964184,1776813041420,-151.0,0.00016943,2]
[420964185,1776813041429,-500.0,0.00016973,2]
[420964186,1776813041439,-500.0,0.00016973,2]
[420964187,1776813041448,-459.26322142,0.00016973,2]
[420964188,1776813041458,-500.0,0.00016973,2]
[420964189,1776813041467,-500.0,0.00016973,2]
[420964190,1776813041477,-500.0,0.00016973,2]
[420964191,1776813041486,-376.73703725,0.00016973,2]
[420964192,1776813041496,-500.0,0.00016973,2]
[420964193,1776813041505,-500.0,0.00016973,2]
[420964194,1776813041514,-500.0,0.00016973,2]
[420964195,1776813041524,-500.0,0.00016973,2]
[420964196,1776813041533,-500.0,0.00016973,2]
[420964197,1776813041542,-518.02795772,0.00016973,2]
[420964198,1776813041551,-38000.0,0.00016982,3]
[420964199,1776813041560,-170.66,0.00016986,2]
[420964200,1776813041570,-38000.0,0.00016991,3]
[420964201,1776813041579,-38000.0,0.00016991,3]
[420964202,1776813041588,-573361.57312866,0.00017,2]
[420964203,1776813041598,-38000.0,0.00017,3]
[420964204,1776813041607,-6152.18865104,0.00017,3]
[420964205,1776813041732,-27958.90250647,0.00017,3]
[420964206,1776813041742,-17075.70767755,0.00017,3]
[420964228,1776813043805,-1000.0,0.0001666,2]
[420964244,1776813046899,-621.35024466,0.0001666,2]
[420964245,1776813046909,-249.64975534,0.00017,3]
[420964247,1776813927541,5018.37,0.000246,120]
[420964279,1776814231802,-5000.0,0.0001062,10]
[420964281,1776814231812,-169.94358079,0.00010727,2]
[420964283,1776814231821,-419.0,0.00010727,2]
[420964285,1776814231831,-1000.0,0.00011,2]
[420964286,1776814231841,-300.0,0.00011107,2]
[420964288,1776814231850,-300.0,0.00011107,2]
[420964290,1776814231859,-300.0,0.00011107,2]
[420964292,1776814231869,-300.0,0.00011107,2]
[420964294,1776814231879,-300.0,0.00011107,2]
[420964296,1776814231888,-300.0,0.00011107,2]
[420964298,1776814231898,-300.0,0.00011107,2]
[420964300,1776814231907,-300.0,0.00011107,2]
[420964302,1776814231916,-300.0,0.00011107,2]
[420964304,1776814231926,-300.0,0.00011107,2]
[420964306,1776814231935,-300.0,0.00011107,2]
[420964308,1776814231944,-300.0,0.00011107,2]
[420964310,1776814231954,-300.0,0.00011107,2]
[420964312,1776814231963,-300.0,0.00011107,2]
[420964315,1776814231972,-300.0,0.00011107,2]
[420964317,1776814231981,-580.40864968,0.00011328,2]
[420964500,1776814238323,-19.59135032,0.00011328,2]
[420964501,1776814238333,-720.0,0.00012461,2]
[420964502,1776814238342,-500.0,0.000126,2]
[420964503,1776814238352,-200.53342533,0.00012727,2]
[420964504,1776814238361,-500.0,0.00012775,2]
[420964505,1776814238370,-1006.0,0.00013,2]
[420964506,1776814238380,-1000.0,0.00013148,2]
[420964507,1776814238389,-500.0,0.00013269,2]
[420964508,1776814238398,-411.65629959,0.00013269,2]
[420964509,1776814238408,-500.0,0.00013269,2]
[420964510,1776814238417,-500.0,0.00013269,2]
[420964511,1776814238426,-500.0,0.00013269,2]
[420964512,1776814238436,-500.0,0.00013269,2]
[420964513,1776814238445,-500.0,0.00013269,2]
[420964514,1776814238455,-500.0,0.00013269,2]
[420964515,1776814238463,-500.0,0.00013269,2]
[420964516,1776814238472,-500.0,0.00013269,2]
[420964517,1776814238482,-500.0,0.00013269,2]
[420964518,1776814238491,-516.92524257,0.00013269,2]
[420964519,1776814238500,-500.0,0.00013269,2]
[420964520,1776814238510,-500.0,0.00013269,2]
[420964521,1776814238519,-500.0,0.00013269,2]
[420964522,1776814238528,-500.0,0.00013269,2]
[420964523,1776814238538,-500.0,0.00013269,2]
[420964524,1776814238547,-500.0,0.00013269,2]
[420964525,1776814238556,-500.0,0.00013269,2]
[420964526,1776814238565,-500.0,0.00013269,2]
[420964527,1776814238575,-500.0,0.00013269,2]
[420964528,1776814238584,-167.65074922,0.00013269,2]
[420964529,1776814238593,-500.0,0.00013269,2]
[420964530,1776814238602,-500.0,0.00013269,2]
[420964531,1776814238611,-168.09288458,0.00013269,2]
[420964532,1776814238621,-500.0,0.00013269,2]
[420964533,1776814238630,-623.86486968,0.00013269,2]
[420964534,1776814238640,-500.0,0.00013269,2]
[420964535,1776814238649,-500.0,0.00013269,2]
[420964536,1776814238659,-500.0,0.00013269,2]
[420964537,1776814238668,-500.0,0.00013269,2]
[420964538,1776814238677,-500.0,0.00013269,2]
[420964539,1776814238686,-500.0,0.00013269,2]
[420964540,1776814238696,-500.0,0.0001327,2]
[420964541,1776814238705,-189.62103808,0.0001327,2]
[420964542,1776814238714,-500.0,0.0001327,2]
[420964543,1776814238724,-500.0,0.0001327,2]
[420964544,1776814238733,-500.0,0.0001327,2]
[420964545,1776814238742,-500.0,0.0001327,2]
[420964546,1776814238752,-500.0,0.0001327,2]
[420964547,1776814238761,-500.0,0.0001327,2]
[420964548,1776814238770,-500.0,0.0001327,2]
[420964549,1776814238779,-500.0,0.0001327,2]
[420964550,1776814238788,-500.0,0.0001327,2]
[420964551,1776814238798,-500.0,0.0001327,2]
[420964552,1776814238807,-629.1719263,0.0001327,2]
[420964553,1776814238816,-500.0,0.0001327,2]
[420964554,1776814238826,-500.0,0.0001327,2]
[420964555,1776814238836,-500.0,0.0001327,2]
[420964556,1776814238845,-500.0,0.0001327,2]
[420964557,1776814238854,-500.0,0.0001327,2]
[420964558,1776814238865,-500.0,0.0001327,2]
[420964559,1776814238874,-500.0,0.0001327,2]
[420964560,1776814238883,-500.0,0.0001327,2]
[420964561,1776814238893,-500.0,0.0001327,2]
[420964562,1776814238903,-600.0,0.0001327,2]
[420964563,1776814238913,-40770.50906588,0.00013271,2]
[420964602,1776814246302,-20437.42980715,0.00013271,2]
[420964603,1776815090536,482162.0,0.00024657,120]
[420964604,1776815109527,418.0,0.00024657,120]
[420964657,1776815438654,-1949.35081786,0.00010745,10]